fUSD/lending_fUSD_20260227
["ID","MTS","AMOUNT","RATE_DAILY","PERIOD"]
[406837182,1772217042702,-500.0,0.00010574,2]
[406837183,1772217042712,-1486.48,0.00010574,2]
[406837184,1772217042721,-468.0,0.0001059,2]
[406837185,1772217042730,-500.0,0.00010629,2]
[406837186,1772217042739,-468.0,0.00010645,2]
[406837187,1772217042748,-500.0,0.00010684,2]
[406837188,1772217042757,-468.0,0.000107,2]
[406837189,1772217042767,-500.0,0.00010738,2]
[406837190,1772217042776,-468.0,0.00010754,2]
[406837191,1772217042785,-250.0,0.00010771,2]
[406837192,1772217042794,-500.0,0.00010793,2]
[406837194,1772217042804,-153.78758465,0.00010803,2]
[406837196,1772217042812,-468.0,0.00010809,2]
[406837198,1772217042821,-1597.93266839,0.00010809,2]
[406837200,1772217042830,-806.17,0.00010822,2]
[406837202,1772217042839,-500.0,0.00010848,2]
[406837203,1772217042849,-1486.48,0.00010848,2]
[406837205,1772217042858,-3292.0,0.00010851,2]
[406837207,1772217042867,-414.0,0.00010851,2]
[406837209,1772217042876,-468.0,0.00010864,2]
[406837210,1772217042884,-820.22794059,0.00010864,2]
[406837211,1772217042893,-2500.0,0.00010864,2]
[406837212,1772217042904,-500.0,0.00010903,2]
[406837213,1772217042913,-468.0,0.00010919,2]
[406837214,1772217042922,-500.0,0.00010958,2]
[406837215,1772217042932,-166.66,0.00010959,2]
[406837216,1772217042942,-468.0,0.00010974,2]
[406837217,1772217042951,-3199.5614149,0.00010999,2]
[406837218,1772217042960,-375.94211011,0.00010999,2]
[406837220,1772217042970,-357.0,0.00011012,2]
[406837221,1772217042979,-1330.43497467,0.00011028,2]
[406837222,1772217042988,-468.0,0.00011028,2]
[406837223,1772217042997,-166.66,0.00011068,2]
[406837224,1772217043006,-468.0,0.00011083,2]
[406837225,1772217043015,-15063.59312758,0.00011099,2]
[406837226,1772217043024,-15063.59312749,0.00011099,2]
[406837227,1772217043034,-15063.59312749,0.00011099,2]
[406837228,1772217043043,-33827.69734086,0.00011099,2]
[406837229,1772217043052,-33827.69734077,0.00011099,2]
[406837230,1772217043065,-33827.69734077,0.00011099,2]
[406837231,1772217043074,-1486.48,0.00011122,2]
[406837232,1772217043083,-1512.33,0.00011129,2]
[406837233,1772217043092,-468.0,0.00011138,2]
[406837234,1772217043102,-166.66,0.00011178,2]
[406837235,1772217043111,-468.0,0.00011193,2]
[406837236,1772217043120,-183.5,0.00011233,2]
[406837237,1772217043130,-468.0,0.00011248,2]
[406837238,1772217043139,-166.66,0.00011288,2]
[406837239,1772217043148,-468.0,0.00011302,2]
[406837240,1772217043159,-468.0,0.00011357,2]
[406837241,1772217043168,-1000.0,0.00011362,2]
[406837242,1772217043177,-1486.48,0.00011396,2]
[406837243,1772217043186,-166.66,0.00011397,2]
[406837244,1772217043195,-468.0,0.00011412,2]
[406837245,1772217043204,-2500.0,0.00011412,2]
[406837246,1772217043213,-15063.59312749,0.00011428,2]
[406837247,1772217043222,-33827.69734077,0.00011467,2]
[406837248,1772217043232,-468.0,0.00011467,2]
[406837249,1772217043241,-166.66,0.00011507,2]
[406837250,1772217043250,-468.0,0.00011522,2]
[406837251,1772217043259,-468.0,0.00011576,2]
[406837252,1772217043268,-468.0,0.00011631,2]
[406837253,1772217043278,-1486.48,0.0001167,2]
[406837254,1772217043286,-468.0,0.00011686,2]
[406837255,1772217043295,-468.0,0.00011741,2]
[406837256,1772217043304,-468.0,0.00011795,2]
[406837257,1772217043313,-486.0,0.0001185,2]
[406837258,1772217043323,-806.17,0.00011905,2]
[406837259,1772217043332,-1291.0,0.00011936,2]
[406837260,1772217043341,-1486.48,0.00011944,2]
[406837262,1772217043351,-1486.48,0.00012218,2]
[406837263,1772217043360,-1486.48,0.00012492,2]
[406837264,1772217043369,-1000.0,0.00012498,2]
[406837265,1772217043378,-15063.59312749,0.00012507,2]
[406837266,1772217043387,-33827.69734077,0.00012539,2]
[406837268,1772217043396,-1486.48,0.00012766,2]
[406837269,1772217043406,-500.0,0.0001289,2]
[406837271,1772217043415,-500.0,0.0001289,2]
[406837273,1772217043424,-500.0,0.0001289,2]
[406837274,1772217043433,-500.0,0.0001289,2]
[406837275,1772217043442,-500.0,0.0001289,2]
[406837276,1772217043451,-500.0,0.0001289,2]
[406837277,1772217043460,-500.0,0.0001289,2]
[406837278,1772217043470,-500.0,0.0001289,2]
[406837279,1772217043479,-500.0,0.0001289,2]
[406837280,1772217043488,-500.0,0.0001289,2]
[406837281,1772217043497,-500.0,0.0001289,2]
[406837283,1772217043507,-500.0,0.0001289,2]
[406837284,1772217043517,-500.0,0.0001289,2]
[406837285,1772217043526,-500.0,0.0001289,2]
[406837286,1772217043535,-500.0,0.0001289,2]
[406837287,1772217043544,-500.0,0.0001289,2]
[406837288,1772217043553,-500.0,0.0001289,2]
[406837289,1772217043562,-500.0,0.0001289,2]
[406837290,1772217043572,-611.11529278,0.0001289,2]
[406837291,1772217043581,-500.0,0.0001289,2]
[406837292,1772217043590,-500.0,0.0001289,2]
[406837293,1772217043599,-500.0,0.0001289,2]
[406837294,1772217043609,-500.0,0.0001289,2]
[406837295,1772217043618,-500.0,0.0001289,2]
[406837296,1772217043627,-500.0,0.0001289,2]
[406837297,1772217043637,-869.88788903,0.0001289,2]
[406837299,1772217043646,-500.0,0.0001289,2]
[406837301,1772217043657,-500.0,0.0001289,2]
[406837302,1772217043667,-500.0,0.0001289,2]
[406837303,1772217043675,-500.0,0.0001289,2]
[406837304,1772217043684,-500.0,0.0001289,2]
[406837305,1772217043694,-500.0,0.0001289,2]
[406837306,1772217043705,-500.0,0.0001289,2]
[406837307,1772217043714,-500.0,0.0001289,2]
[406837308,1772217043723,-500.0,0.0001289,2]
[406837309,1772217043732,-500.0,0.0001289,2]
[406837310,1772217043741,-500.0,0.0001289,2]
[406837311,1772217043751,-500.0,0.0001289,2]
[406837312,1772217043761,-500.0,0.0001289,2]
[406837313,1772217043770,-500.0,0.0001289,2]
[406837314,1772217043780,-500.0,0.0001289,2]
[406837315,1772217043789,-500.0,0.0001289,2]
[406837316,1772217043799,-500.0,0.0001289,2]
[406837317,1772217043808,-500.0,0.0001289,2]
[406837318,1772217043818,-563.07260655,0.0001289,2]
[406837319,1772217043827,-222.579039,0.00012936,2]
[406837320,1772217043836,-806.17,0.00012987,2]
[406837321,1772217043846,-1486.48,0.0001304,2]
[406837322,1772217043855,-2076.60426122,0.00013046,2]
[406837323,1772217043865,-1488.080409,0.00013224,2]
[406837324,1772217043874,-262.91,0.00013233,2]
[406837325,1772217043883,-1486.48,0.00013314,2]
[406837326,1772217043893,-3240.0,0.00013425,2]
[406837327,1772217043903,-15063.59312749,0.00013585,2]
[406837328,1772217043913,-1486.48,0.00013588,2]
[406837329,1772217043922,-33827.69734077,0.00013611,2]
[406837330,1772217043932,-1000.0,0.00013634,2]
[406837331,1772217043941,-500.0,0.00013698,2]
[406837332,1772217043950,-500.0,0.00013698,2]
[406837333,1772217043959,-500.0,0.00013698,2]
[406837334,1772217043969,-500.0,0.00013698,2]
[406837335,1772217043978,-500.0,0.00013698,2]
[406837336,1772217043987,-500.0,0.00013698,2]
[406837337,1772217043996,-500.0,0.00013698,2]
[406837338,1772217044005,-500.0,0.00013698,2]
[406837339,1772217044014,-500.0,0.00013698,2]
[406837340,1772217044023,-500.0,0.00013698,2]
[406837341,1772217044033,-500.0,0.00013698,2]
[406837342,1772217044042,-500.0,0.00013698,2]
[406837343,1772217044051,-500.0,0.00013698,2]
[406837344,1772217044061,-500.0,0.00013698,2]
[406837345,1772217044072,-500.0,0.00013698,2]
[406837346,1772217044081,-500.0,0.00013698,2]
[406837347,1772217044090,-500.0,0.00013698,2]
[406837348,1772217044099,-500.0,0.00013698,2]
[406837349,1772217044109,-500.0,0.00013698,2]
[406837350,1772217044118,-500.0,0.00013698,2]
[406837351,1772217044127,-500.0,0.00013698,2]
[406837352,1772217044137,-500.0,0.00013698,2]
[406837353,1772217044147,-500.0,0.00013698,2]
[406837354,1772217044157,-500.0,0.00013698,2]
[406837355,1772217044166,-500.0,0.00013698,2]
[406837356,1772217044176,-500.0,0.00013698,2]
[406837357,1772217044185,-500.0,0.00013698,2]
[406837358,1772217044194,-479.11436236,0.00013698,2]
[406837359,1772217044203,-500.0,0.00013698,2]
[406837360,1772217044212,-500.0,0.00013698,2]
[406837361,1772217044221,-500.0,0.00013698,2]
[406837362,1772217044230,-500.0,0.00013698,2]
[406837363,1772217044239,-500.0,0.00013698,2]
[406837364,1772217044248,-500.0,0.00013698,2]
[406837365,1772217044257,-500.0,0.00013698,2]
[406837366,1772217044266,-500.0,0.00013698,2]
[406837367,1772217044276,-500.0,0.00013698,2]
[406837368,1772217044285,-500.0,0.00013698,2]
[406837369,1772217044295,-500.0,0.00013698,2]
[406837370,1772217044304,-500.0,0.00013698,2]
[406837371,1772217044313,-500.0,0.00013698,2]
[406837372,1772217044323,-500.0,0.00013698,2]
[406837373,1772217044331,-210.48,0.00013698,2]
[406837374,1772217044341,-500.0,0.00013698,2]
[406837375,1772217044351,-500.0,0.00013698,2]
[406837376,1772217044360,-500.0,0.00013698,2]
[406837377,1772217044369,-500.0,0.00013698,2]
[406837378,1772217044378,-357.08179502,0.00013698,2]
[406837379,1772217044387,-500.0,0.00013698,2]
[406837380,1772217044397,-500.0,0.00013698,2]
[406837381,1772217044406,-500.0,0.00013698,2]
[406837382,1772217044416,-500.0,0.00013698,2]
[406837383,1772217044425,-500.0,0.00013698,2]
[406837384,1772217044435,-500.0,0.00013698,2]
[406837385,1772217044444,-500.0,0.00013698,2]
[406837386,1772217044453,-500.0,0.00013698,2]
[406837387,1772217044463,-500.0,0.00013698,2]
[406837388,1772217044473,-500.0,0.00013698,2]
[406837389,1772217044482,-500.0,0.00013698,2]
[406837390,1772217044492,-500.0,0.00013698,2]
[406837391,1772217044501,-500.0,0.00013698,2]
[406837392,1772217044510,-500.0,0.00013698,2]
[406837393,1772217044520,-500.0,0.00013698,2]
[406837394,1772217044529,-500.0,0.00013698,2]
[406837395,1772217044539,-500.0,0.00013698,2]
[406837396,1772217044548,-500.0,0.00013698,2]
[406837397,1772217044559,-500.0,0.00013698,2]
[406837398,1772217044568,-500.0,0.00013698,2]
[406837399,1772217044577,-500.0,0.00013698,2]
[406837400,1772217044585,-500.0,0.00013698,2]
[406837401,1772217044595,-500.0,0.00013698,2]
[406837402,1772217044605,-500.0,0.00013698,2]
[406837403,1772217044613,-500.0,0.00013698,2]
[406837404,1772217044622,-500.0,0.00013698,2]
[406837405,1772217044631,-500.0,0.00013698,2]
[406837406,1772217044640,-500.0,0.00013698,2]
[406837407,1772217044650,-500.0,0.00013698,2]
[406837408,1772217044660,-500.0,0.00013698,2]
[406837409,1772217044669,-500.0,0.00013698,2]
[406837410,1772217044678,-500.0,0.00013698,2]
[406837411,1772217044687,-500.0,0.00013698,2]
[406837412,1772217044696,-500.0,0.00013698,2]
[406837413,1772217044706,-500.0,0.00013698,2]
[406837414,1772217044715,-500.0,0.00013698,2]
[406837415,1772217044723,-500.0,0.00013698,2]
[406837416,1772217044733,-500.0,0.00013698,2]
[406837417,1772217044741,-500.0,0.00013698,2]
[406837418,1772217044751,-500.0,0.00013698,2]
[406837419,1772217044761,-500.0,0.00013698,2]
[406837420,1772217044770,-500.0,0.00013698,2]
[406837421,1772217044779,-500.0,0.00013698,2]
[406837422,1772217044788,-500.0,0.00013698,2]
[406837423,1772217044797,-500.0,0.00013698,2]
[406837424,1772217044806,-278.70046284,0.00013698,2]
[406837425,1772217044815,-500.0,0.00013698,2]
[406837426,1772217044824,-500.0,0.00013698,2]
[406837427,1772217044833,-500.0,0.00013698,2]
[406837428,1772217044842,-500.0,0.00013698,2]
[406837429,1772217044852,-500.0,0.00013698,2]
[406837430,1772217044861,-500.0,0.00013698,2]
[406837431,1772217044870,-500.0,0.00013698,2]
[406837432,1772217044879,-500.0,0.00013698,2]
[406837433,1772217044888,-500.0,0.00013698,2]
[406837434,1772217044897,-500.0,0.00013698,2]
[406837435,1772217044906,-500.0,0.00013698,2]
[406837436,1772217044916,-500.0,0.00013698,2]
[406837437,1772217044925,-500.0,0.00013698,2]
[406837438,1772217044934,-500.0,0.00013698,2]
[406837439,1772217044943,-500.0,0.00013698,2]
[406837440,1772217044953,-500.0,0.00013698,2]
[406837441,1772217044962,-500.0,0.00013698,2]
[406837442,1772217044971,-500.0,0.00013698,2]
[406837443,1772217044981,-500.0,0.00013698,2]
[406837444,1772217044991,-500.0,0.00013698,2]
[406837445,1772217045000,-500.0,0.00013698,2]
[406837446,1772217045010,-500.0,0.00013698,2]
[406837447,1772217045019,-500.0,0.00013698,2]
[406837448,1772217045028,-457.86,0.00013699,2]
[406837449,1772217045037,-500.0,0.00013699,2]
[406837450,1772217045046,-500.0,0.00013699,2]
[406837451,1772217045055,-501.50601316,0.00013699,2]
[406837452,1772217045066,-500.0,0.00013699,2]
[406837453,1772217045075,-500.0,0.00013699,2]
[406837454,1772217045084,-500.0,0.00013699,2]
[406837455,1772217045095,-500.0,0.00013699,2]
[406837456,1772217045106,-500.82123681,0.00013699,2]
[406837457,1772217045114,-500.0,0.00013699,2]
[406837458,1772217045123,-500.0,0.00013699,2]
[406837459,1772217045133,-500.0,0.00013699,2]
[406837460,1772217045142,-502.2190815,0.00013699,2]
[406837461,1772217045151,-500.0,0.00013699,2]
[406837462,1772217045160,-501.97857854,0.00013699,2]
[406837463,1772217045170,-505.28465419,0.00013699,2]
[406837464,1772217045179,-500.0,0.00013699,2]
[406837465,1772217045188,-500.0,0.00013699,2]
[406837466,1772217045197,-504.75046136,0.00013699,2]
[406837467,1772217045206,-500.0,0.00013699,2]
[406837468,1772217045215,-500.0,0.00013699,2]
[406837469,1772217045224,-500.0,0.00013699,2]
[406837470,1772217045233,-500.0,0.00013699,2]
[406837471,1772217045242,-502.48858977,0.00013699,2]
[406837472,1772217045251,-500.0,0.00013699,2]
[406837473,1772217045260,-500.0,0.00013699,2]
[406837474,1772217045269,-500.0,0.00013699,2]
[406837475,1772217045279,-500.0,0.00013699,2]
[406837476,1772217045288,-310.9054072,0.00013699,2]
[406837477,1772217045297,-504.17214118,0.00013699,2]
[406837478,1772217045306,-507.14846603,0.00013699,2]
[406837479,1772217045315,-500.0,0.00013699,2]
[406837480,1772217045324,-500.0,0.00013699,2]
[406837481,1772217045451,-505.53161927,0.00013699,2]
[406837482,1772217045462,-500.0,0.00013699,2]
[406837483,1772217045471,-504.20237615,0.00013699,2]
[406837484,1772217045480,-564.44693438,0.00013699,2]
[406837485,1772217045489,-500.0,0.00013699,2]
[406837486,1772217045498,-500.0,0.00013699,2]
[406837487,1772217045507,-500.0,0.00013699,2]
[406837488,1772217045516,-500.0,0.00013699,2]
[406837489,1772217045525,-500.0,0.00013699,2]
[406837490,1772217045535,-50000.0,0.00013699,2]
[406837491,1772217045544,-1486.48,0.00013862,2]
[406837492,1772217045554,-1400.0,0.000139,5]
[406837493,1772217045562,-3400.0,0.000139,5]
[406837494,1772217045571,-1486.48,0.00014136,2]
[406837495,1772217045580,-457.86,0.00014384,2]
[406837496,1772217045589,-1043.438596,0.000144,7]
[406837497,1772217045598,-1486.50057164,0.0001441,2]
[406837498,1772217045607,-15063.59312749,0.00014664,2]
[406837499,1772217045616,-33827.69734077,0.00014683,2]
[406837500,1772217045626,-510.0,0.0001489,2]
[406837501,1772217045637,-250.0,0.00015,2]
[406837502,1772217045646,-457.86,0.00015068,2]
[406837503,1772217045656,-874.83,0.00015086,2]
[406837504,1772217045664,-161.09,0.00015311,2]
[406837505,1772217045673,-599.83,0.0001536,2]
[406837506,1772217045682,-1000.0,0.00015605,7]
[406837507,1772217045691,-262.91,0.00015658,2]
[406837508,1772217045701,-15063.59312749,0.00015743,2]
[406837509,1772217045710,-457.86,0.00015753,2]
[406837510,1772217045719,-33827.69734077,0.00015756,2]
[406837511,1772217045729,-10048.75,0.00015863,2]
[406837512,1772217045738,-158.83553081,0.00016438,2]
[406837513,1772217045747,-518.0,0.00016438,2]
[406837514,1772217045756,-457.86,0.00016438,2]
[406837515,1772217045765,-174.00015664,0.00016443,2]
[406837516,1772217045774,-518.0,0.00016493,2]
[406837517,1772217045783,-518.0,0.00016548,2]
[406837518,1772217045792,-518.0,0.00016602,2]
[406837519,1772217045801,-518.0,0.00016657,2]
[406837520,1772217045811,-518.0,0.00016712,2]
[406837522,1772217045820,-518.0,0.00016767,2]
[406837523,1772217045830,-200.0,0.00016792,2]
[406837524,1772217045839,-15063.59312749,0.00016821,2]
[406837525,1772217045848,-518.0,0.00016822,2]
[406837526,1772217045857,-33827.69734077,0.00016828,2]
[406837527,1772217045866,-518.0,0.00016876,2]
[406837528,1772217045875,-518.0,0.00016931,2]
[406837529,1772217045884,-234.0,0.00016962,2]
[406837530,1772217045893,-518.0,0.00016986,2]
[406837531,1772217045902,-518.0,0.00017041,2]
[406837532,1772217045911,-518.0,0.00017068,2]
[406837533,1772217045920,-518.0,0.00017096,2]
[406837534,1772217045928,-271.0,0.0001711,2]
[406837535,1772217045937,-518.0,0.0001715,2]
[406837536,1772217045946,-518.0,0.00017205,2]
[406837537,1772217045955,-185.482532,0.00017248,7]
[406837538,1772217045964,-518.0,0.0001726,2]
[406837539,1772217045973,-348.0,0.00017288,2]
[406837540,1772217045983,-518.0,0.00017315,2]
[406837541,1772217045992,-518.0,0.0001737,2]
[406837542,1772217046001,-518.0,0.00017424,2]
[406837543,1772217046010,-518.0,0.00017479,2]
[406837544,1772217046019,-518.0,0.00017534,2]
[406837545,1772217046028,-518.0,0.00017589,2]
[406837546,1772217046037,-2000.0,0.0001759,2]
[406837547,1772217046046,-3472.187621,0.00017632,7]
[406837548,1772217046056,-161.07,0.00017637,2]
[406837549,1772217046067,-518.0,0.00017643,2]
[406837550,1772217046076,-2000.0,0.0001769,2]
[406837551,1772217046085,-526.01719171,0.00017698,2]
[406837552,1772217046094,-1800.0,0.000177,6]
[406837553,1772217046105,-4300.0,0.000177,6]
[406837554,1772217046115,-18845.0222882,0.0001779,2]
[406837555,1772217046124,-2000.0,0.0001779,2]
[406837556,1772217046135,-300.0,0.000178,6]
[406837557,1772217046145,-800.0,0.000178,6]
[406837558,1772217046154,-5000.0,0.00017808,2]
[406837559,1772217046163,-500.0,0.00017808,2]
[406837560,1772217046173,-500.0,0.00017863,2]
[406837561,1772217046182,-500.0,0.00017899,3]
[406837562,1772217046191,-645.74125194,0.00017899,3]
[406837563,1772217046200,-500.0,0.00017899,3]
[406837564,1772217046209,-500.0,0.00017899,3]
[406837565,1772217046218,-500.0,0.00017899,3]
[406837566,1772217046227,-500.0,0.00017899,3]
[406837567,1772217046236,-500.0,0.00017899,3]
[406837568,1772217046246,-500.0,0.00017899,3]
[406837569,1772217046255,-200.0,0.00017899,3]
[406837570,1772217046264,-500.0,0.00017899,3]
[406837571,1772217046273,-500.0,0.00017899,3]
[406837572,1772217046282,-500.0,0.00017899,3]
[406837573,1772217046291,-500.0,0.00017899,3]
[406837574,1772217046301,-500.0,0.00017899,3]
[406837576,1772217046310,-500.0,0.00017899,3]
[406837578,1772217046320,-500.0,0.00017899,3]
[406837579,1772217046329,-500.0,0.00017899,3]
[406837581,1772217046338,-200.0,0.00017899,3]
[406837583,1772217046349,-500.0,0.00017899,3]
[406837584,1772217046358,-500.0,0.00017899,3]
[406837586,1772217046368,-200.0,0.00017899,3]
[406837588,1772217046377,-500.0,0.00017899,3]
[406837589,1772217046386,-500.0,0.00017899,3]
[406837590,1772217046395,-200.0,0.00017899,3]
[406837591,1772217046405,-500.0,0.00017899,3]
[406837592,1772217046414,-200.0,0.00017899,3]
[406837593,1772217046425,-500.0,0.00017899,3]
[406837594,1772217046434,-200.0,0.00017899,3]
[406837595,1772217046444,-500.0,0.00017899,3]
[406837596,1772217046454,-200.0,0.00017899,3]
[406837597,1772217046463,-500.0,0.00017899,3]
[406837598,1772217046473,-200.0,0.00017899,3]
[406837599,1772217046482,-500.0,0.00017899,3]
[406837600,1772217046491,-200.0,0.00017899,3]
[406837601,1772217046500,-500.0,0.00017899,3]
[406837602,1772217046509,-200.0,0.00017899,3]
[406837603,1772217046519,-500.0,0.00017899,3]
[406837604,1772217046527,-200.0,0.00017899,3]
[406837605,1772217046537,-200.0,0.00017899,3]
[406837606,1772217046546,-200.0,0.00017899,3]
[406837607,1772217046555,-200.0,0.00017899,3]
[406837608,1772217046564,-200.0,0.00017899,3]
[406837609,1772217046574,-151.0,0.00017899,3]
[406837610,1772217046582,-200.0,0.00017899,3]
[406837611,1772217046591,-151.0,0.00017899,3]
[406837612,1772217046601,-200.0,0.00017899,3]
[406837613,1772217046610,-151.0,0.00017899,3]
[406837614,1772217046619,-200.0,0.00017899,3]
[406837615,1772217046629,-151.0,0.00017899,3]
[406837616,1772217046637,-200.0,0.00017899,3]
[406837617,1772217046646,-151.0,0.00017899,3]
[406837618,1772217046656,-202.72622012,0.00017899,3]
[406837619,1772217046665,-151.0,0.00017899,3]
[406837620,1772217046674,-500.0,0.00017899,3]
[406837621,1772217046683,-151.0,0.00017899,3]
[406837622,1772217046692,-151.0,0.00017899,3]
[406837623,1772217046701,-151.0,0.00017899,3]
[406837624,1772217046710,-151.0,0.00017899,3]
[406837625,1772217046720,-234.50005133,0.00017899,3]
[406837626,1772217046729,-151.0,0.00017899,3]
[406837627,1772217046739,-151.0,0.00017899,3]
[406837628,1772217046748,-151.0,0.00017899,3]
[406837629,1772217046757,-151.0,0.00017899,3]
[406837630,1772217046766,-151.0,0.00017899,3]
[406837631,1772217046775,-151.0,0.00017899,3]
[406837632,1772217046784,-151.0,0.00017899,3]
[406837633,1772217046793,-151.0,0.00017899,3]
[406837634,1772217046802,-151.0,0.00017899,3]
[406837635,1772217046812,-151.0,0.00017899,3]
[406837636,1772217046821,-151.0,0.00017899,3]
[406837637,1772217046830,-151.0,0.00017899,3]
[406837638,1772217046839,-151.0,0.00017899,3]
[406837639,1772217046848,-2076.60426122,0.000179,2]
[406837640,1772217046857,-15063.59312749,0.000179,2]
[406837641,1772217046866,-300.0,0.000179,6]
[406837642,1772217046875,-800.0,0.000179,6]
[406837643,1772217046884,-33827.69734077,0.000179,2]
[406837644,1772217046894,-500.0,0.00017918,2]
[406837645,1772217046905,-500.0,0.00017972,2]
[406837646,1772217046914,-283.90698305,0.00017973,2]
[406837647,1772217046923,-423.54897496,0.0001799,2]
[406837648,1772217046932,-423.54897496,0.0001799,2]
[406837649,1772217046941,-500.0,0.00017999,2]
[406837650,1772217046950,-500.0,0.00017999,2]
[406837651,1772217046959,-500.0,0.00017999,2]
[406837652,1772217046968,-500.0,0.00017999,2]
[406837653,1772217046977,-330.02,0.00017999,2]
[406837654,1772217046996,-300.0,0.00017999,2]
[406837655,1772217047006,-300.0,0.00017999,2]
[406837656,1772217047015,-666.0,0.00017999,2]
[406837657,1772217047025,-300.0,0.00017999,2]
[406837658,1772217047037,-666.0,0.00017999,2]
[406837659,1772217047048,-500.0,0.00017999,2]
[406837660,1772217047060,-500.0,0.00017999,2]
[406837661,1772217047072,-500.0,0.00017999,2]
[406837662,1772217047082,-500.0,0.00017999,2]
[406837663,1772217047092,-500.0,0.00017999,2]
[406837664,1772217047103,-500.0,0.00017999,2]
[406837665,1772217047112,-500.0,0.00017999,2]
[406837666,1772217047121,-500.0,0.00017999,2]
[406837667,1772217047131,-500.0,0.00017999,2]
[406837668,1772217047142,-500.0,0.00017999,2]
[406837669,1772217047151,-500.0,0.00017999,2]
[406837670,1772217047162,-611.16,0.00017999,2]
[406837671,1772217047171,-500.0,0.00017999,2]
[406837672,1772217047181,-500.0,0.00017999,2]
[406837673,1772217047190,-511.11,0.00017999,2]
[406837674,1772217047200,-500.0,0.00017999,2]
[406837675,1772217047209,-500.0,0.00017999,2]
[406837676,1772217047219,-563.9784206,0.00017999,2]
[406837677,1772217047230,-300.0,0.00017999,2]
[406837678,1772217047239,-666.0,0.00017999,2]
[406837679,1772217047249,-150.0,0.00017999,2]
[406837680,1772217047259,-150.0,0.00017999,2]
[406837681,1772217047269,-150.0,0.00017999,2]
[406837682,1772217047279,-150.0,0.00017999,2]
[406837683,1772217047289,-150.0,0.00017999,2]
[406837684,1772217047298,-150.0,0.00017999,2]
[406837685,1772217047308,-150.0,0.00017999,2]
[406837686,1772217047317,-269.99465202,0.00017999,2]
[406837687,1772217047326,-1000.0,0.00018,2]
[406837688,1772217047336,-1000.0,0.00018,2]
[406837689,1772217047345,-1000.0,0.00018,2]
[406837690,1772217047358,-1000.0,0.00018,2]
[406837691,1772217047368,-612.14922787,0.00018,2]
[406837692,1772217047377,-3846399.76034756,0.00018,2]
[406837693,1772217047387,-96190.24890077,0.00018,2]
[406837694,1772217047396,-1683143.46170142,0.00018,2]
[406837695,1772217047594,-483.11999975,0.00018,2]
[406837696,1772217047710,-97391.87683908,0.00018,2]
[406837697,1772217047721,-344305.59725041,0.00018,2]
[406837698,1772217047731,-545.4112834,0.00018,2]
[406837699,1772217047741,-84515.7875087,0.00018,2]
[406837700,1772217047750,-200.0,0.00018,2]
[406837701,1772217047759,-151.0,0.00018,2]
[406837702,1772217047769,-151.0,0.00018,2]
[406837703,1772217047778,-151.0,0.00018,2]
[406837704,1772217047787,-151.0,0.00018,2]